[Event "*** Titled Tuesday Blitz"]
[Site "Chess.com"]
[Date "2020.10.20"]
[Round "5"]
[White "Savagelittlemole"]
[Black "GukeshDommaraju"]
[Result "0-1"]
[WhiteElo "2613"]
[BlackElo "2830"]
[TimeControl "180+1"]
[EndTime "10:56:43 PDT"]
[Termination "GukeshDommaraju won by resignation"]

1. e4 {[%clk 0:02:58.3]} 1... c6 {[%clk 0:02:59.6]} 2. d4 {[%clk 0:02:57.9]}
2... d5 {[%clk 0:02:59.7]} 3. e5 {[%clk 0:02:58.1]} 3... Bf5 {[%clk 0:02:59.3]}
4. Nf3 {[%clk 0:02:57.8]} 4... e6 {[%clk 0:02:59.7]} 5. Be2 {[%clk 0:02:58.4]}
5... c5 {[%clk 0:02:55.7]} 6. O-O {[%clk 0:02:57.8]} 6... Nc6 {[%clk 0:02:54.4]}
7. Be3 {[%clk 0:02:56.4]} 7... cxd4 {[%clk 0:02:53.3]} 8. Nxd4 {[%clk
0:02:54.3]} 8... Nge7 {[%clk 0:02:53.8]} 9. f4 {[%clk 0:02:50]} 9... Nxd4 {[%clk
0:02:40.2]} 10. Bxd4 {[%clk 0:02:50.9]} 10... Nc6 {[%clk 0:02:40.2]} 11. Bf2
{[%clk 0:02:44.3]} 11... Be7 {[%clk 0:02:33.2]} 12. c4 {[%clk 0:02:25.9]} 12...
dxc4 {[%clk 0:02:11.2]} 13. Qa4 {[%clk 0:02:24.5]} 13... O-O {[%clk 0:02:04.1]}
14. Qxc4 {[%clk 0:02:09.2]} 14... Rc8 {[%clk 0:02:01.8]} 15. Qa4 {[%clk
0:02:06.9]} 15... Qc7 {[%clk 0:01:18.9]} 16. Nc3 {[%clk 0:02:03]} 16... Rfd8
{[%clk 0:01:18.5]} 17. Nb5 {[%clk 0:01:58.4]} 17... Qb8 {[%clk 0:01:18.4]} 18.
Rfd1 {[%clk 0:01:43.9]} 18... a6 {[%clk 0:01:17.3]} 19. Nc3 {[%clk 0:01:32.4]}
19... Nb4 {[%clk 0:01:16.6]} 20. Rxd8+ {[%clk 0:01:29.6]} 20... Rxd8 {[%clk
0:01:15.8]} 21. Be3 {[%clk 0:01:06.9]} 21... Nc2 {[%clk 0:01:12.9]} 22. g4
{[%clk 0:00:51.2]} 22... Bg6 {[%clk 0:00:59]} 23. f5 {[%clk 0:00:40.8]} 23...
Nxe3 {[%clk 0:00:58.1]} 24. fxg6 {[%clk 0:00:40.7]} 24... hxg6 {[%clk
0:00:58.5]} 25. Qf4 {[%clk 0:00:35.2]} 25... Bc5 {[%clk 0:00:52.9]} 26. Kh1
{[%clk 0:00:35.3]} 26... Bd4 {[%clk 0:00:39.6]} 27. Nd1 {[%clk 0:00:18.6]} 27...
Nc2 {[%clk 0:00:33.3]} 28. Rc1 {[%clk 0:00:17.7]} 28... Bxe5 {[%clk 0:00:33.3]}
29. Qe4 {[%clk 0:00:17.4]} 29... Nd4 {[%clk 0:00:33.2]} 30. Nc3 {[%clk
0:00:15.5]} 30... f5 {[%clk 0:00:28.5]} 31. gxf5 {[%clk 0:00:14.8]} 31... gxf5
{[%clk 0:00:29.4]} 32. Bc4 {[%clk 0:00:14.5]} 32... fxe4 {[%clk 0:00:28.9]} 0-1

[Event "*** Titled Tuesday Blitz"]
[Site "Chess.com"]
[Date "2020.10.20"]
[Round "5"]
[White "Ural_bogatyr"]
[Black "chessmadara"]
[Result "0-1"]
[WhiteElo "2363"]
[BlackElo "2166"]
[TimeControl "180+1"]
[EndTime "10:56:44 PDT"]
[Termination "chessmadara won by resignation"]

1. e4 {[%clk 0:03:00.9]} 1... c5 {[%clk 0:02:58]} 2. Nf3 {[%clk 0:02:59.9]} 2...
Nc6 {[%clk 0:02:57.5]} 3. d4 {[%clk 0:02:59.9]} 3... cxd4 {[%clk 0:02:57.2]} 4.
Nxd4 {[%clk 0:03:00.8]} 4... g6 {[%clk 0:02:56.8]} 5. Nc3 {[%clk 0:03:00.6]}
5... Bg7 {[%clk 0:02:56.3]} 6. Be3 {[%clk 0:03:01]} 6... Nf6 {[%clk 0:02:55.9]}
7. Bc4 {[%clk 0:03:00.6]} 7... O-O {[%clk 0:02:54.2]} 8. Nxc6 {[%clk 0:03:01.1]}
8... bxc6 {[%clk 0:02:53.8]} 9. O-O {[%clk 0:03:02]} 9... Nxe4 {[%clk
0:02:46.6]} 10. Nxe4 {[%clk 0:03:02.9]} 10... d5 {[%clk 0:02:46.3]} 11. Bd3
{[%clk 0:03:02.8]} 11... dxe4 {[%clk 0:02:45.1]} 12. Bxe4 {[%clk 0:03:03.7]}
12... Qc7 {[%clk 0:02:34.1]} 13. c3 {[%clk 0:03:01.3]} 13... Be6 {[%clk
0:02:31.4]} 14. Qf3 {[%clk 0:02:52.9]} 14... Rab8 {[%clk 0:02:21.9]} 15. Rfb1
{[%clk 0:02:39.6]} 15... Be5 {[%clk 0:02:16.7]} 16. h3 {[%clk 0:02:32.6]} 16...
Rfc8 {[%clk 0:02:16]} 17. Bc5 {[%clk 0:02:24.7]} 17... Rb5 {[%clk 0:02:08.9]}
18. b4 {[%clk 0:02:22.4]} 18... Bf6 {[%clk 0:01:21.4]} 19. a4 {[%clk 0:02:18.3]}
19... Rbb8 {[%clk 0:01:21.9]} 20. a5 {[%clk 0:02:08.1]} 20... Qe5 {[%clk
0:01:19]} 21. Bd4 {[%clk 0:01:59.5]} 21... Qg5 {[%clk 0:01:08.3]} 22. Bxf6
{[%clk 0:01:48.7]} 22... exf6 {[%clk 0:01:09.2]} 23. Bxc6 {[%clk 0:01:46.9]}
23... Rxc6 {[%clk 0:01:08.6]} 24. Qxc6 {[%clk 0:01:45.8]} 24... Bd5 {[%clk
0:01:08.8]} 25. Qxd5 {[%clk 0:01:40.2]} 25... Qxd5 {[%clk 0:01:08.8]} 26. Rd1
{[%clk 0:01:33.5]} 26... Qc4 {[%clk 0:01:07.8]} 27. Rac1 {[%clk 0:01:32.5]}
27... Re8 {[%clk 0:01:06.8]} 28. Rd4 {[%clk 0:01:30.6]} 28... Qa2 {[%clk
0:01:04.2]} 29. c4 {[%clk 0:01:21.9]} 29... Qb2 {[%clk 0:01:02.9]} 30. Rdd1
{[%clk 0:01:19.3]} 30... Re2 {[%clk 0:01:00.7]} 31. Rf1 {[%clk 0:01:14.3]} 31...
Rxf2 {[%clk 0:01:00.6]} 32. Rxf2 {[%clk 0:01:14.3]} 32... Qxc1+ {[%clk
0:01:00.7]} 33. Rf1 {[%clk 0:01:13.9]} 33... Qxc4 {[%clk 0:01:00.6]} 34. Rb1
{[%clk 0:01:13.7]} 34... Qd4+ {[%clk 0:00:58.2]} 35. Kh1 {[%clk 0:01:13.3]}
35... Qd3 {[%clk 0:00:54.9]} 36. Rb2 {[%clk 0:01:08.6]} 36... f5 {[%clk
0:00:48.4]} 37. b5 {[%clk 0:01:06.1]} 37... Qa3 {[%clk 0:00:48]} 38. Rb1 {[%clk
0:01:03.2]} 38... Qxa5 {[%clk 0:00:47.9]} 39. Rb3 {[%clk 0:01:02.4]} 39... f4
{[%clk 0:00:47.5]} 40. Rb1 {[%clk 0:01:02.2]} 40... f3 {[%clk 0:00:47.1]} 41.
gxf3 {[%clk 0:01:01.7]} 41... Qa2 {[%clk 0:00:44.1]} 42. Rb4 {[%clk 0:00:59.2]}
42... Qd2 {[%clk 0:00:40.4]} 43. Re4 {[%clk 0:00:55]} 43... h5 {[%clk
0:00:34.3]} 44. Re7 {[%clk 0:00:48.7]} 44... Qf2 {[%clk 0:00:29]} 0-1

[Event "*** Titled Tuesday Blitz"]
[Site "Chess.com"]
[Date "2020.10.20"]
[Round "5"]
[White "dennisodessa"]
[Black "sopo-tereladze"]
[Result "1-0"]
[WhiteElo "2430"]
[BlackElo "2293"]
[TimeControl "180+1"]
[EndTime "10:56:47 PDT"]
[Termination "dennisodessa won by resignation"]

1. d4 {[%clk 0:02:58.4]} 1... Nf6 {[%clk 0:02:59.1]} 2. c4 {[%clk 0:02:58.6]}
2... e6 {[%clk 0:02:57.6]} 3. Nc3 {[%clk 0:02:59.1]} 3... Bb4 {[%clk 0:02:56.6]}
4. Qc2 {[%clk 0:02:58.8]} 4... O-O {[%clk 0:02:55.5]} 5. a3 {[%clk 0:02:59.4]}
5... Bxc3+ {[%clk 0:02:55.1]} 6. Qxc3 {[%clk 0:03:00.3]} 6... d6 {[%clk
0:02:55.2]} 7. Bg5 {[%clk 0:02:58.6]} 7... h6 {[%clk 0:02:53.9]} 8. Bh4 {[%clk
0:02:58.7]} 8... Nc6 {[%clk 0:02:53]} 9. Nf3 {[%clk 0:02:59]} 9... Re8 {[%clk
0:02:50.4]} 10. e3 {[%clk 0:02:59.1]} 10... e5 {[%clk 0:02:50.2]} 11. Be2 {[%clk
0:02:59.5]} 11... exd4 {[%clk 0:02:46.7]} 12. Nxd4 {[%clk 0:02:59.4]} 12... Nxd4
{[%clk 0:02:46.2]} 13. Qxd4 {[%clk 0:03:00.3]} 13... Re6 {[%clk 0:02:42.5]} 14.
O-O {[%clk 0:02:55.8]} 14... Qe8 {[%clk 0:02:41.3]} 15. Bxf6 {[%clk 0:02:49.4]}
15... Rxf6 {[%clk 0:02:40.6]} 16. Bf3 {[%clk 0:02:50.1]} 16... c6 {[%clk
0:02:30.2]} 17. b4 {[%clk 0:02:49.6]} 17... Bf5 {[%clk 0:02:30.3]} 18. Rfd1
{[%clk 0:02:47.9]} 18... Qe7 {[%clk 0:02:15.7]} 19. b5 {[%clk 0:02:44.9]} 19...
c5 {[%clk 0:02:03.9]} 20. Qc3 {[%clk 0:02:41.8]} 20... Be4 {[%clk 0:02:01.3]}
21. Bxe4 {[%clk 0:02:35.8]} 21... Qxe4 {[%clk 0:02:02.2]} 22. Rd5 {[%clk
0:02:33]} 22... Re8 {[%clk 0:02:00]} 23. Rad1 {[%clk 0:02:19.3]} 23... Rg6
{[%clk 0:01:57.1]} 24. g3 {[%clk 0:02:19.3]} 24... Ree6 {[%clk 0:01:56.5]} 25.
Qd3 {[%clk 0:02:07.4]} 25... Qxd3 {[%clk 0:01:46.9]} 26. R1xd3 {[%clk
0:02:08.3]} 26... Kf8 {[%clk 0:01:42.8]} 27. f3 {[%clk 0:02:08.5]} 27... b6
{[%clk 0:01:36.7]} 28. Kf2 {[%clk 0:02:08]} 28... Ke7 {[%clk 0:01:36.7]} 29. e4
{[%clk 0:02:04.1]} 29... Kd7 {[%clk 0:01:34.7]} 30. Ke3 {[%clk 0:02:03.7]} 30...
Kc7 {[%clk 0:01:34.3]} 31. f4 {[%clk 0:02:02.2]} 31... f5 {[%clk 0:01:25.2]} 32.
Rxf5 {[%clk 0:01:58.8]} 32... Re7 {[%clk 0:01:23.1]} 33. e5 {[%clk 0:01:54.2]}
33... Rge6 {[%clk 0:01:21.5]} 34. Ke4 {[%clk 0:01:16.1]} 34... g6 {[%clk
0:01:17.5]} 35. Rf8 {[%clk 0:01:16.4]} 35... dxe5 {[%clk 0:01:17.2]} 36. f5
{[%clk 0:01:17.2]} 36... gxf5+ {[%clk 0:01:15.3]} 37. Rxf5 {[%clk 0:01:18.1]}
37... Kb7 {[%clk 0:00:59.4]} 38. g4 {[%clk 0:01:13.5]} 38... a6 {[%clk
0:00:58.1]} 39. a4 {[%clk 0:01:12.5]} 39... axb5 {[%clk 0:00:58]} 40. axb5
{[%clk 0:01:13.4]} 40... Rg6 {[%clk 0:00:49.9]} 41. h3 {[%clk 0:01:13]} 41...
Rg5 {[%clk 0:00:40.9]} 42. Rd5 {[%clk 0:01:11.2]} 42... Rxf5 {[%clk 0:00:37]}
43. gxf5 {[%clk 0:01:12.1]} 43... Kc7 {[%clk 0:00:35.1]} 44. f6 {[%clk
0:01:08.6]} 44... Rf7 {[%clk 0:00:31.3]} 45. Kf5 {[%clk 0:01:08.7]} 45... e4
{[%clk 0:00:30.6]} 46. Kg6 {[%clk 0:01:08.6]} 46... Rf8 {[%clk 0:00:24.6]} 47.
Kg7 {[%clk 0:01:08.4]} 1-0

[Event "*** Titled Tuesday Blitz"]
[Site "Chess.com"]
[Date "2020.10.20"]
[Round "5"]
[White "rasmussvane"]
[Black "ThePatrick27"]
[Result "1-0"]
[WhiteElo "2893"]
[BlackElo "2558"]
[TimeControl "180+1"]
[EndTime "10:56:50 PDT"]
[Termination "rasmussvane won by resignation"]

1. Nf3 {[%clk 0:03:00.9]} 1... Nf6 {[%clk 0:02:56.6]} 2. g3 {[%clk 0:03:01.2]}
2... g6 {[%clk 0:02:55]} 3. Bg2 {[%clk 0:03:01.4]} 3... Bg7 {[%clk 0:02:55.6]}
4. O-O {[%clk 0:03:01.9]} 4... O-O {[%clk 0:02:56]} 5. d4 {[%clk 0:03:02.5]}
5... d6 {[%clk 0:02:54.5]} 6. Re1 {[%clk 0:03:02.4]} 6... Nc6 {[%clk 0:02:53.8]}
7. d5 {[%clk 0:03:02.1]} 7... Nb4 {[%clk 0:02:38.4]} 8. Nc3 {[%clk 0:02:58.5]}
8... c5 {[%clk 0:02:38.3]} 9. e4 {[%clk 0:02:56.6]} 9... Bg4 {[%clk 0:02:22.4]}
10. h3 {[%clk 0:02:48.1]} 10... Bxf3 {[%clk 0:02:22.5]} 11. Bxf3 {[%clk
0:02:49]} 11... Na6 {[%clk 0:02:21.2]} 12. Bg2 {[%clk 0:02:45.3]} 12... Nc7
{[%clk 0:02:18.9]} 13. Bf4 {[%clk 0:02:38.2]} 13... Nd7 {[%clk 0:02:16.4]} 14.
Qd2 {[%clk 0:02:37.8]} 14... Re8 {[%clk 0:02:15.4]} 15. Bh6 {[%clk 0:02:36.7]}
15... Bh8 {[%clk 0:02:10.8]} 16. Rad1 {[%clk 0:02:33.5]} 16... b5 {[%clk
0:02:09.3]} 17. h4 {[%clk 0:02:30]} 17... b4 {[%clk 0:02:03]} 18. Na4 {[%clk
0:02:29.6]} 18... Ne5 {[%clk 0:02:02.7]} 19. b3 {[%clk 0:02:23.7]} 19... Nb5
{[%clk 0:01:59.9]} 20. Be3 {[%clk 0:02:13.4]} 20... Ng4 {[%clk 0:01:58.6]} 21.
Bh3 {[%clk 0:02:09]} 21... Nxe3 {[%clk 0:01:57.6]} 22. Qxe3 {[%clk 0:02:09.9]}
22... Nd4 {[%clk 0:01:55.7]} 23. Qd3 {[%clk 0:02:05.4]} 23... Qc7 {[%clk
0:01:28.4]} 24. f4 {[%clk 0:02:02.1]} 24... e5 {[%clk 0:01:25.3]} 25. dxe6
{[%clk 0:02:00.4]} 25... fxe6 {[%clk 0:01:26.2]} 26. c3 {[%clk 0:01:52.6]} 26...
bxc3 {[%clk 0:01:24.5]} 27. Nxc3 {[%clk 0:01:53.5]} 27... Qa5 {[%clk 0:01:19.2]}
28. Kh1 {[%clk 0:01:51.3]} 28... Rad8 {[%clk 0:01:11.3]} 29. Bg4 {[%clk
0:01:47.5]} 29... Bf6 {[%clk 0:00:59.5]} 30. h5 {[%clk 0:01:45.6]} 30... Re7
{[%clk 0:00:55.4]} 31. e5 {[%clk 0:01:42.3]} 31... dxe5 {[%clk 0:00:51.4]} 32.
fxe5 {[%clk 0:01:43.2]} 32... Bg7 {[%clk 0:00:48.8]} 33. hxg6 {[%clk 0:01:42.9]}
33... hxg6 {[%clk 0:00:48.7]} 34. Na4 {[%clk 0:01:33.6]} 34... Qc7 {[%clk
0:00:26.6]} 35. Qxg6 {[%clk 0:01:31]} 35... Qc6+ {[%clk 0:00:26.7]} 36. Kg1
{[%clk 0:01:13.5]} 36... Rf7 {[%clk 0:00:20.5]} 37. Nc3 {[%clk 0:01:08.1]} 37...
Rdf8 {[%clk 0:00:19]} 38. Ne4 {[%clk 0:01:05.7]} 38... Nf3+ {[%clk 0:00:07.5]}
39. Bxf3 {[%clk 0:01:01.1]} 39... Rxf3 {[%clk 0:00:08.4]} 40. Nf6+ {[%clk
0:00:53.4]} 40... R8xf6 {[%clk 0:00:07]} 41. exf6 {[%clk 0:00:53.3]} 41... Rxf6
{[%clk 0:00:07.9]} 42. Rd8+ {[%clk 0:00:52.3]} 42... Rf8 {[%clk 0:00:08.2]} 43.
Qxe6+ {[%clk 0:00:52.1]} 43... Qxe6 {[%clk 0:00:07.7]} 44. Rxf8+ {[%clk
0:00:52.7]} 44... Bxf8 {[%clk 0:00:07.7]} 45. Rxe6 {[%clk 0:00:53.3]} 45... Kf7
{[%clk 0:00:08.3]} 46. Ra6 {[%clk 0:00:53.3]} 1-0

[Event "*** Titled Tuesday Blitz"]
[Site "Chess.com"]
[Date "2020.10.20"]
[Round "5"]
[White "ENajer77"]
[Black "harvsp123"]
[Result "0-1"]
[WhiteElo "2692"]
[BlackElo "2472"]
[TimeControl "180+1"]
[EndTime "10:56:54 PDT"]
[Termination "harvsp123 won on time"]

1. e4 {[%clk 0:03:00.9]} 1... g6 {[%clk 0:02:57.8]} 2. d4 {[%clk 0:02:59.7]}
2... Bg7 {[%clk 0:02:58.7]} 3. Nc3 {[%clk 0:02:59.8]} 3... d6 {[%clk 0:02:59]}
4. Be3 {[%clk 0:02:59.4]} 4... a6 {[%clk 0:02:58.8]} 5. Nf3 {[%clk 0:02:59.1]}
5... b5 {[%clk 0:02:56.9]} 6. Bd3 {[%clk 0:02:56.2]} 6... Bb7 {[%clk 0:02:56.6]}
7. e5 {[%clk 0:02:55.9]} 7... e6 {[%clk 0:02:48]} 8. O-O {[%clk 0:02:53.3]} 8...
Nd7 {[%clk 0:02:45.8]} 9. Be4 {[%clk 0:02:49.9]} 9... Bxe4 {[%clk 0:02:39.3]}
10. Nxe4 {[%clk 0:02:49.8]} 10... d5 {[%clk 0:02:39.9]} 11. Ned2 {[%clk
0:02:36.4]} 11... c5 {[%clk 0:02:36.4]} 12. dxc5 {[%clk 0:02:34.3]} 12... Ne7
{[%clk 0:02:33.8]} 13. c3 {[%clk 0:02:17.6]} 13... Qc7 {[%clk 0:02:32.2]} 14. a4
{[%clk 0:02:14.9]} 14... O-O {[%clk 0:02:30.8]} 15. b4 {[%clk 0:02:07.5]} 15...
Nxe5 {[%clk 0:02:29.1]} 16. axb5 {[%clk 0:01:49]} 16... axb5 {[%clk 0:02:28.4]}
17. Rxa8 {[%clk 0:01:47.7]} 17... Rxa8 {[%clk 0:02:27.5]} 18. Nd4 {[%clk
0:01:47.7]} 18... Qd7 {[%clk 0:02:13.6]} 19. Qe1 {[%clk 0:01:47.1]} 19... N7c6
{[%clk 0:02:06]} 20. Qe2 {[%clk 0:01:37.2]} 20... Nc4 {[%clk 0:01:53.7]} 21.
Nxc4 {[%clk 0:01:32.1]} 21... bxc4 {[%clk 0:01:50.5]} 22. Nxc6 {[%clk
0:00:53.9]} 22... Qxc6 {[%clk 0:01:49.4]} 23. Qb2 {[%clk 0:00:53.5]} 23... Qb5
{[%clk 0:01:15.3]} 24. Ra1 {[%clk 0:00:51.7]} 24... Rxa1+ {[%clk 0:01:14.3]} 25.
Qxa1 {[%clk 0:00:51]} 25... h5 {[%clk 0:01:10.7]} 26. Qa5 {[%clk 0:00:48.4]}
26... Qd7 {[%clk 0:00:49.5]} 27. b5 {[%clk 0:00:47.6]} 27... d4 {[%clk
0:00:35.2]} 28. c6 {[%clk 0:00:47.1]} 28... Qd5 {[%clk 0:00:34]} 29. c7 {[%clk
0:00:42.9]} 29... dxe3 {[%clk 0:00:30.5]} 30. c8=Q+ {[%clk 0:00:41]} 30... Kh7
{[%clk 0:00:31.4]} 31. Qa1 {[%clk 0:00:23.4]} 31... e2 {[%clk 0:00:30.7]} 32.
Qe1 {[%clk 0:00:05.9]} 32... Qd1 {[%clk 0:00:30.4]} 0-1

[Event "*** Titled Tuesday Blitz"]
[Site "Chess.com"]
[Date "2020.10.20"]
[Round "5"]
[White "jamalm2"]
[Black "Zemerovv"]
[Result "0-1"]
[WhiteElo "1828"]
[BlackElo "2281"]
[TimeControl "180+1"]
[EndTime "10:56:54 PDT"]
[Termination "Zemerovv won on time"]

1. e4 {[%clk 0:02:59.5]} 1... g6 {[%clk 0:02:59.8]} 2. d4 {[%clk 0:02:58.4]}
2... Bg7 {[%clk 0:03:00.7]} 3. Nc3 {[%clk 0:02:58.3]} 3... d6 {[%clk 0:03:01.6]}
4. f4 {[%clk 0:02:57.1]} 4... Nd7 {[%clk 0:03:02.5]} 5. Nf3 {[%clk 0:02:56.7]}
5... e6 {[%clk 0:03:03.4]} 6. Be3 {[%clk 0:02:55.7]} 6... Ne7 {[%clk 0:03:04.3]}
7. Bd3 {[%clk 0:02:51.1]} 7... f5 {[%clk 0:03:05.2]} 8. e5 {[%clk 0:02:42.7]}
8... O-O {[%clk 0:03:06.1]} 9. O-O {[%clk 0:02:39.3]} 9... Nb6 {[%clk 0:03:07]}
10. Kh1 {[%clk 0:02:32.3]} 10... Nbd5 {[%clk 0:03:07.9]} 11. Nxd5 {[%clk
0:02:30.4]} 11... Nxd5 {[%clk 0:03:05.4]} 12. Bd2 {[%clk 0:02:30]} 12... dxe5
{[%clk 0:03:00.6]} 13. fxe5 {[%clk 0:02:26.1]} 13... h6 {[%clk 0:02:55.7]} 14.
c4 {[%clk 0:02:22.9]} 14... Nb6 {[%clk 0:02:54.6]} 15. Be3 {[%clk 0:02:14]}
15... c6 {[%clk 0:02:52]} 16. Qd2 {[%clk 0:02:08.9]} 16... g5 {[%clk 0:02:51.4]}
17. Rad1 {[%clk 0:01:55.3]} 17... Bd7 {[%clk 0:02:46.7]} 18. b3 {[%clk
0:01:52.9]} 18... Be8 {[%clk 0:02:45.8]} 19. Bb1 {[%clk 0:01:51.2]} 19... Bh5
{[%clk 0:02:44.4]} 20. d5 {[%clk 0:01:39.2]} 20... cxd5 {[%clk 0:02:38]} 21.
Bxb6 {[%clk 0:01:38]} 21... axb6 {[%clk 0:02:36.8]} 22. cxd5 {[%clk 0:01:37.6]}
22... Qxd5 {[%clk 0:02:35.5]} 23. Qxd5 {[%clk 0:01:36.2]} 23... exd5 {[%clk
0:02:35.1]} 24. Rxd5 {[%clk 0:01:35.5]} 24... Rfd8 {[%clk 0:02:32]} 25. Rxd8+
{[%clk 0:01:27.6]} 25... Rxd8 {[%clk 0:02:30.1]} 26. Bxf5 {[%clk 0:01:26.8]}
26... Bxf3 {[%clk 0:02:27.1]} 27. gxf3 {[%clk 0:01:26.4]} 27... Bxe5 {[%clk
0:02:25.2]} 28. Kg2 {[%clk 0:01:20.1]} 28... Rd2+ {[%clk 0:02:23.8]} 29. Rf2
{[%clk 0:01:18.1]} 29... Rxf2+ {[%clk 0:02:21.5]} 30. Kxf2 {[%clk 0:01:17.4]}
30... Bxh2 {[%clk 0:02:21.9]} 31. Be4 {[%clk 0:01:17.2]} 31... b5 {[%clk
0:02:19.6]} 32. Bxb7 {[%clk 0:01:16.3]} 32... b4 {[%clk 0:02:19]} 33. Kg2 {[%clk
0:01:08.3]} 33... Be5 {[%clk 0:02:17.3]} 34. Be4 {[%clk 0:01:02.6]} 34... Kg7
{[%clk 0:02:16.5]} 35. Kh3 {[%clk 0:01:02]} 35... Bf4 {[%clk 0:02:11.5]} 36. Kg4
{[%clk 0:01:00.3]} 36... Kf6 {[%clk 0:02:09.9]} 37. Kh5 {[%clk 0:00:58.9]} 37...
Ke5 {[%clk 0:02:08.9]} 38. Bc6 {[%clk 0:00:49.9]} 38... Kd4 {[%clk 0:02:05.8]}
39. Bd7 {[%clk 0:00:43.5]} 39... Kc3 {[%clk 0:02:03.5]} 40. Bg4 {[%clk
0:00:39.8]} 40... Kb2 {[%clk 0:02:02.3]} 41. Be6 {[%clk 0:00:27.2]} 41... Kxa2
{[%clk 0:02:00.6]} 42. Kg4 {[%clk 0:00:26.5]} 42... Kb2 {[%clk 0:01:58.5]} 43.
Kh5 {[%clk 0:00:26]} 43... Kc3 {[%clk 0:01:57.6]} 44. Bd5 {[%clk 0:00:25]} 44...
Kd4 {[%clk 0:01:56.7]} 45. Bb7 {[%clk 0:00:19.6]} 45... Ke3 {[%clk 0:01:54]} 46.
Bd5 {[%clk 0:00:17.7]} 46... Kd3 {[%clk 0:01:52.4]} 47. Bb7 {[%clk 0:00:14.4]}
47... Bc1 {[%clk 0:01:50.9]} 48. Bd5 {[%clk 0:00:13.2]} 48... Kd4 {[%clk
0:01:49]} 49. Bf7 {[%clk 0:00:11.7]} 49... Ke5 {[%clk 0:01:49.9]} 50. Bg8 {[%clk
0:00:08.5]} 50... Kf4 {[%clk 0:01:50.8]} 51. Bd5 {[%clk 0:00:07.2]} 51... Be3
{[%clk 0:01:50.2]} 52. Bb7 {[%clk 0:00:06.4]} 52... Ke5 {[%clk 0:01:49.1]} 53.
Bc6 {[%clk 0:00:05.8]} 53... Kd4 {[%clk 0:01:49]} 54. Bb7 {[%clk 0:00:05]} 54...
Kc3 {[%clk 0:01:49.9]} 55. Bd5 {[%clk 0:00:04.1]} 55... Kd3 {[%clk 0:01:49.2]}
56. Bf7 {[%clk 0:00:02.7]} 56... Kd4 {[%clk 0:01:48.4]} 57. Bg8 {[%clk
0:00:01.3]} 57... Bf4 {[%clk 0:01:49.3]} 0-1

[Event "*** Titled Tuesday Blitz"]
[Site "Chess.com"]
[Date "2020.10.20"]
[Round "5"]
[White "Khnykin_Nikolay"]
[Black "gliglu"]
[Result "0-1"]
[WhiteElo "2063"]
[BlackElo "2331"]
[TimeControl "180+1"]
[EndTime "10:56:55 PDT"]
[Termination "gliglu won by checkmate"]

1. e4 {[%clk 0:02:54.3]} 1... c6 {[%clk 0:02:59]} 2. d4 {[%clk 0:02:53.7]} 2...
d5 {[%clk 0:02:59]} 3. Bd3 {[%clk 0:02:52.8]} 3... dxe4 {[%clk 0:02:55.6]} 4.
Bxe4 {[%clk 0:02:52.9]} 4... Nf6 {[%clk 0:02:55.6]} 5. Bf3 {[%clk 0:02:52.1]}
5... Bf5 {[%clk 0:02:54.4]} 6. Ne2 {[%clk 0:02:52.1]} 6... e6 {[%clk 0:02:54.3]}
7. O-O {[%clk 0:02:50.5]} 7... Be7 {[%clk 0:02:54.2]} 8. Nbc3 {[%clk 0:02:50.9]}
8... O-O {[%clk 0:02:53.5]} 9. Bg5 {[%clk 0:02:51.3]} 9... h6 {[%clk 0:02:52.3]}
10. Bh4 {[%clk 0:02:49.9]} 10... Nbd7 {[%clk 0:02:49.6]} 11. Nf4 {[%clk
0:02:46.1]} 11... Nd5 {[%clk 0:02:46.9]} 12. Bxe7 {[%clk 0:02:43.7]} 12... Qxe7
{[%clk 0:02:45.1]} 13. Ncxd5 {[%clk 0:02:42.9]} 13... cxd5 {[%clk 0:02:43.3]}
14. Re1 {[%clk 0:02:43.1]} 14... Qd6 {[%clk 0:02:41.2]} 15. g3 {[%clk
0:02:39.1]} 15... Rac8 {[%clk 0:02:39.6]} 16. Rc1 {[%clk 0:02:37.5]} 16... b5
{[%clk 0:02:37.9]} 17. b3 {[%clk 0:02:36.3]} 17... a5 {[%clk 0:02:36.3]} 18. c4
{[%clk 0:02:35]} 18... bxc4 {[%clk 0:02:34]} 19. bxc4 {[%clk 0:02:33.9]} 19...
dxc4 {[%clk 0:02:29.7]} 20. Qa4 {[%clk 0:02:32.5]} 20... Qxd4 {[%clk 0:02:17.8]}
21. Red1 {[%clk 0:02:21.1]} 21... Nb6 {[%clk 0:02:11.5]} 22. Qxa5 {[%clk
0:02:12.3]} 22... Qc5 {[%clk 0:02:10.1]} 23. Qxc5 {[%clk 0:02:10.5]} 23... Rxc5
{[%clk 0:02:09.2]} 24. Rc3 {[%clk 0:01:54.5]} 24... Na4 {[%clk 0:02:05.8]} 25.
Ra3 {[%clk 0:01:53]} 25... Nb2 {[%clk 0:02:03.7]} 26. Rc1 {[%clk 0:01:50.9]}
26... Rd8 {[%clk 0:01:57.2]} 27. Rac3 {[%clk 0:01:48.9]} 27... Rd2 {[%clk
0:01:51]} 28. Kg2 {[%clk 0:01:17.7]} 28... Ra5 {[%clk 0:01:46.9]} 29. a3 {[%clk
0:01:14.1]} 29... g5 {[%clk 0:01:38.3]} 30. Nh5 {[%clk 0:01:09.3]} 30... Bg6
{[%clk 0:01:37.8]} 31. Nf6+ {[%clk 0:01:08.1]} 31... Kg7 {[%clk 0:01:37.3]} 32.
Ne8+ {[%clk 0:01:04.1]} 32... Kf8 {[%clk 0:01:37]} 33. Nf6 {[%clk 0:01:03.7]}
33... Nd3 {[%clk 0:01:20.9]} 34. Rb1 {[%clk 0:00:32.4]} 34... Rxf2+ {[%clk
0:01:19.2]} 35. Kg1 {[%clk 0:00:29.6]} 35... Rxf3 {[%clk 0:01:19]} 36. Rb8+
{[%clk 0:00:28.6]} 36... Ke7 {[%clk 0:01:15.7]} 37. Ng8+ {[%clk 0:00:28.1]}
37... Kd6 {[%clk 0:01:15]} 38. Rxc4 {[%clk 0:00:26]} 38... Ne5 {[%clk 0:01:06]}
39. Rd8+ {[%clk 0:00:21.9]} 39... Nd7 {[%clk 0:01:05.9]} 40. Rd4+ {[%clk
0:00:21.4]} 40... Rd5 {[%clk 0:01:05.8]} 41. Rb4 {[%clk 0:00:18.3]} 41... Bd3
{[%clk 0:01:01.4]} 42. Kg2 {[%clk 0:00:17.7]} 42... Re3 {[%clk 0:00:55.5]} 43.
Nxh6 {[%clk 0:00:16.2]} 43... Re2+ {[%clk 0:00:53.4]} 44. Kf3 {[%clk 0:00:15.4]}
44... Ke7 {[%clk 0:00:48.3]} 45. Ra8 {[%clk 0:00:12.7]} 45... Ne5# {[%clk
0:00:46.5]} 0-1